[Event "*** Titled Tuesday Blitz"]
[Site "Chess.com"]
[Date "2020.11.03"]
[Round "5"]
[White "mr_gustavo"]
[Black "Iskusnyh"]
[Result "0-1"]
[WhiteElo "2409"]
[BlackElo "2579"]
[TimeControl "180+1"]
[EndTime "10:59:17 PST"]
[Termination "Iskusnyh won on time"]

1. e4 {[%clk 0:03:00.9]} 1... e6 {[%clk 0:02:59.2]} 2. d4 {[%clk 0:03:00.6]}
2... d5 {[%clk 0:02:59.6]} 3. Nd2 {[%clk 0:03:01.1]} 3... c5 {[%clk 0:02:58.7]}
4. exd5 {[%clk 0:03:00.6]} 4... Qxd5 {[%clk 0:02:57.6]} 5. dxc5 {[%clk
0:03:00.4]} 5... Nf6 {[%clk 0:02:56.8]} 6. Ngf3 {[%clk 0:03:00.3]} 6... Qxc5
{[%clk 0:02:56]} 7. Bd3 {[%clk 0:02:58.9]} 7... Nbd7 {[%clk 0:02:55.1]} 8. O-O
{[%clk 0:02:59]} 8... Qc7 {[%clk 0:02:49.8]} 9. Qe2 {[%clk 0:02:58.5]} 9... Be7
{[%clk 0:02:42.8]} 10. Rd1 {[%clk 0:02:40.9]} 10... Nc5 {[%clk 0:02:33]} 11.
Bb5+ {[%clk 0:02:35.3]} 11... Bd7 {[%clk 0:02:32.2]} 12. Bxd7+ {[%clk
0:02:34.3]} 12... Ncxd7 {[%clk 0:02:29.7]} 13. Ne4 {[%clk 0:02:23.4]} 13... Nxe4
{[%clk 0:02:15]} 14. Qxe4 {[%clk 0:02:24.3]} 14... O-O {[%clk 0:02:14.7]} 15.
Bf4 {[%clk 0:02:16.8]} 15... Nf6 {[%clk 0:01:49.8]} 16. Bxc7 {[%clk 0:02:00.7]}
16... Nxe4 {[%clk 0:01:48.6]} 17. Rd4 {[%clk 0:01:51.4]} 17... Rac8 {[%clk
0:01:40.3]} 18. Bf4 {[%clk 0:01:35.7]} 18... f5 {[%clk 0:01:30.3]} 19. Rd7
{[%clk 0:00:32.1]} 19... Bf6 {[%clk 0:01:17.2]} 20. c3 {[%clk 0:00:29.5]} 20...
Nc5 {[%clk 0:01:12.3]} 21. Rd6 {[%clk 0:00:20.4]} 21... Rfd8 {[%clk 0:01:05]}
22. Rad1 {[%clk 0:00:18.5]} 22... Rxd6 {[%clk 0:01:03.1]} 23. Rxd6 {[%clk
0:00:19.4]} 23... Na4 {[%clk 0:01:03.5]} 24. Be5 {[%clk 0:00:11.2]} 24... Be7
{[%clk 0:00:57]} 25. Rxe6 {[%clk 0:00:09.8]} 25... Kf7 {[%clk 0:00:57]} 26. Nd4
{[%clk 0:00:06.2]} 26... Nc5 {[%clk 0:00:55.4]} 27. Rxe7+ {[%clk 0:00:04.3]}
27... Kxe7 {[%clk 0:00:54.8]} 28. Bxg7 {[%clk 0:00:04.2]} 28... Kf7 {[%clk
0:00:49.7]} 29. Nxf5 {[%clk 0:00:04.2]} 29... Rd8 {[%clk 0:00:45.9]} 30. Bd4
{[%clk 0:00:03.5]} 30... Na4 {[%clk 0:00:44.1]} 31. b3 {[%clk 0:00:02.1]} 31...
Nxc3 {[%clk 0:00:42.8]} 32. g3 {[%clk 0:00:02.3]} 32... Ne2+ {[%clk 0:00:42.2]}
33. Kg2 {[%clk 0:00:01.8]} 33... Nxd4 {[%clk 0:00:42.6]} 34. Ne3 {[%clk
0:00:02.7]} 34... Ne6 {[%clk 0:00:40.7]} 35. Kf3 {[%clk 0:00:03]} 35... Rd2
{[%clk 0:00:39.7]} 36. a4 {[%clk 0:00:02.1]} 36... Rb2 {[%clk 0:00:39.4]} 37.
Nc4 {[%clk 0:00:01.8]} 37... Rxb3+ {[%clk 0:00:38.9]} 38. Ke4 {[%clk 0:00:02.7]}
38... Rb4 {[%clk 0:00:38.6]} 39. Kd5 {[%clk 0:00:03.2]} 39... Rxa4 {[%clk
0:00:35.1]} 40. Nd6+ {[%clk 0:00:03.3]} 40... Ke7 {[%clk 0:00:33.6]} 41. Nxb7
{[%clk 0:00:04.2]} 41... Ra2 {[%clk 0:00:32.5]} 42. f4 {[%clk 0:00:03.8]} 42...
Rxh2 {[%clk 0:00:31.8]} 43. f5 {[%clk 0:00:03.5]} 43... Ng5 {[%clk 0:00:31.2]}
44. Nc5 {[%clk 0:00:03.6]} 44... Rd2+ {[%clk 0:00:29.4]} 45. Ke5 {[%clk
0:00:03.6]} 45... Nf7+ {[%clk 0:00:28.7]} 46. Kf4 {[%clk 0:00:03.2]} 46... a5
{[%clk 0:00:28.1]} 47. Nb3 {[%clk 0:00:02.6]} 47... Rf2+ {[%clk 0:00:25.6]} 48.
Kg4 {[%clk 0:00:01.9]} 48... a4 {[%clk 0:00:24.6]} 49. Nd4 {[%clk 0:00:01.1]}
49... a3 {[%clk 0:00:23]} 0-1

[Event "*** Titled Tuesday Blitz"]
[Site "Chess.com"]
[Date "2020.11.03"]
[Round "5"]
[White "LubovMarkelova"]
[Black "grandcoach"]
[Result "1-0"]
[WhiteElo "2232"]
[BlackElo "2076"]
[TimeControl "180+1"]
[EndTime "10:59:18 PST"]
[Termination "LubovMarkelova won on time"]

1. Nf3 {[%clk 0:02:55.9]} 1... c5 {[%clk 0:02:57.2]} 2. c4 {[%clk 0:02:53.8]}
2... Nc6 {[%clk 0:02:56.8]} 3. Nc3 {[%clk 0:02:51.3]} 3... e5 {[%clk 0:02:56.2]}
4. g3 {[%clk 0:02:34.9]} 4... g6 {[%clk 0:02:54.1]} 5. Bg2 {[%clk 0:02:35.2]}
5... Bg7 {[%clk 0:02:53.9]} 6. O-O {[%clk 0:02:32.2]} 6... Nge7 {[%clk
0:02:53.2]} 7. a3 {[%clk 0:02:26.2]} 7... O-O {[%clk 0:02:52]} 8. Rb1 {[%clk
0:02:25.8]} 8... a5 {[%clk 0:02:50.1]} 9. Ne1 {[%clk 0:02:16]} 9... f5 {[%clk
0:02:36.7]} 10. Nc2 {[%clk 0:02:13.3]} 10... f4 {[%clk 0:02:36.7]} 11. d3 {[%clk
0:02:11.9]} 11... d6 {[%clk 0:02:32.8]} 12. Nd5 {[%clk 0:02:05.8]} 12... g5
{[%clk 0:02:19.9]} 13. b4 {[%clk 0:01:54.5]} 13... axb4 {[%clk 0:02:19.9]} 14.
axb4 {[%clk 0:01:54.3]} 14... Bg4 {[%clk 0:02:01.6]} 15. bxc5 {[%clk 0:01:50]}
15... dxc5 {[%clk 0:01:58.6]} 16. Rxb7 {[%clk 0:01:49.6]} 16... Ra2 {[%clk
0:01:27.8]} 17. Rb2 {[%clk 0:01:28.9]} 17... Ra7 {[%clk 0:01:09.9]} 18. Rb5
{[%clk 0:01:21.9]} 18... Qd6 {[%clk 0:01:02.8]} 19. Ba3 {[%clk 0:01:14]} 19...
Rxa3 {[%clk 0:01:02]} 20. Nxa3 {[%clk 0:01:12.8]} 20... Nd4 {[%clk 0:01:01.3]}
21. f3 {[%clk 0:00:49.3]} 21... Nxd5 {[%clk 0:00:46.3]} 22. cxd5 {[%clk
0:00:47.5]} 22... Nxb5 {[%clk 0:00:43.3]} 23. Nxb5 {[%clk 0:00:47.5]} 23... Qd7
{[%clk 0:00:40.5]} 24. Qb3 {[%clk 0:00:39.6]} 24... Bf5 {[%clk 0:00:33.5]} 25.
g4 {[%clk 0:00:35.4]} 25... Bg6 {[%clk 0:00:32.3]} 26. Qc4 {[%clk 0:00:25.2]}
26... Bf7 {[%clk 0:00:30.5]} 27. Qxc5 {[%clk 0:00:21.4]} 27... Rc8 {[%clk
0:00:25.5]} 28. Qb6 {[%clk 0:00:09.5]} 28... Bxd5 {[%clk 0:00:19.3]} 29. Rb1
{[%clk 0:00:07]} 29... h6 {[%clk 0:00:10.7]} 30. Kh1 {[%clk 0:00:07.2]} 30...
Qc6 {[%clk 0:00:09]} 31. Qxc6 {[%clk 0:00:06.1]} 31... Rxc6 {[%clk 0:00:08.3]}
32. Na7 {[%clk 0:00:06.2]} 32... Rc2 {[%clk 0:00:07.4]} 33. Bf1 {[%clk
0:00:05.9]} 33... Bf8 {[%clk 0:00:05.8]} 34. Nb5 {[%clk 0:00:05.4]} 34... Bc5
{[%clk 0:00:04.9]} 35. Kg2 {[%clk 0:00:05.6]} 35... Be3 {[%clk 0:00:04.2]} 36.
Na3 {[%clk 0:00:04.5]} 36... Rd2 {[%clk 0:00:03.3]} 37. Nc4 {[%clk 0:00:04.2]}
37... Bxc4 {[%clk 0:00:03.4]} 38. dxc4 {[%clk 0:00:04.5]} 38... Rc2 {[%clk
0:00:04]} 39. Rb4 {[%clk 0:00:04.4]} 39... Kf7 {[%clk 0:00:03]} 40. Ra4 {[%clk
0:00:04]} 40... Ke6 {[%clk 0:00:02.5]} 41. h4 {[%clk 0:00:04.4]} 41... gxh4
{[%clk 0:00:01.9]} 42. Kh3 {[%clk 0:00:04.7]} 42... Rc1 {[%clk 0:00:01.7]} 43.
Bg2 {[%clk 0:00:05.1]} 1-0

[Event "*** Titled Tuesday Blitz"]
[Site "Chess.com"]
[Date "2020.11.03"]
[Round "5"]
[White "Chessalary"]
[Black "DryCounty"]
[Result "1-0"]
[WhiteElo "2418"]
[BlackElo "2560"]
[TimeControl "180+1"]
[EndTime "10:59:20 PST"]
[Termination "Chessalary won by resignation"]

1. d4 {[%clk 0:03:00.9]} 1... Nf6 {[%clk 0:02:58.9]} 2. c4 {[%clk 0:03:00.9]}
2... g6 {[%clk 0:02:59.3]} 3. Nc3 {[%clk 0:03:01.2]} 3... Bg7 {[%clk 0:02:59.5]}
4. e4 {[%clk 0:03:00.4]} 4... O-O {[%clk 0:02:59.7]} 5. g3 {[%clk 0:03:00.8]}
5... d6 {[%clk 0:02:59.9]} 6. Bg2 {[%clk 0:03:01]} 6... c5 {[%clk 0:02:57.9]} 7.
Nge2 {[%clk 0:03:01.9]} 7... cxd4 {[%clk 0:02:52.6]} 8. Nxd4 {[%clk 0:03:02.8]}
8... Nc6 {[%clk 0:02:52.8]} 9. Be3 {[%clk 0:03:01.9]} 9... Bd7 {[%clk
0:02:52.1]} 10. O-O {[%clk 0:03:01.2]} 10... Ng4 {[%clk 0:02:45.8]} 11. Nxc6
{[%clk 0:02:54.8]} 11... Nxe3 {[%clk 0:02:36.6]} 12. Nxd8 {[%clk 0:02:40.3]}
12... Nxd1 {[%clk 0:02:35.4]} 13. Rfxd1 {[%clk 0:02:40]} 13... Rfxd8 {[%clk
0:02:34.4]} 14. Nd5 {[%clk 0:02:36.8]} 14... Kf8 {[%clk 0:02:31.4]} 15. Rab1
{[%clk 0:02:33.3]} 15... e6 {[%clk 0:02:06.1]} 16. Ne3 {[%clk 0:02:28.2]} 16...
Bc6 {[%clk 0:02:02]} 17. b3 {[%clk 0:02:21]} 17... a5 {[%clk 0:01:58.4]} 18. a4
{[%clk 0:02:19.9]} 18... Ke7 {[%clk 0:01:55.9]} 19. Kf1 {[%clk 0:02:19.5]} 19...
Ra6 {[%clk 0:01:52.5]} 20. Ke2 {[%clk 0:02:18.9]} 20... Rb6 {[%clk 0:01:50.7]}
21. f4 {[%clk 0:02:08.5]} 21... Ra6 {[%clk 0:01:48.5]} 22. Rd3 {[%clk
0:02:06.3]} 22... Raa8 {[%clk 0:01:44.1]} 23. Rbd1 {[%clk 0:02:04.7]} 23... h5
{[%clk 0:01:43.7]} 24. Kf2 {[%clk 0:02:04.2]} 24... h4 {[%clk 0:01:38.6]} 25.
R3d2 {[%clk 0:01:45.2]} 25... Bc3 {[%clk 0:01:35.4]} 26. Rd3 {[%clk 0:01:44.4]}
26... Bb4 {[%clk 0:01:35.2]} 27. Nc2 {[%clk 0:01:43.8]} 27... Bc5+ {[%clk
0:01:34.9]} 28. Ne3 {[%clk 0:01:39.7]} 28... hxg3+ {[%clk 0:01:29.2]} 29. Kxg3
{[%clk 0:01:37.3]} 29... Rh8 {[%clk 0:01:18.4]} 30. Re1 {[%clk 0:01:31.6]} 30...
Kf8 {[%clk 0:00:59.9]} 31. e5 {[%clk 0:01:26.5]} 31... dxe5 {[%clk 0:00:56.2]}
32. fxe5 {[%clk 0:01:23.1]} 32... Bxg2 {[%clk 0:00:47.1]} 33. Nxg2 {[%clk
0:01:24]} 33... Ke7 {[%clk 0:00:34.9]} 34. Nf4 {[%clk 0:01:21.8]} 34... Rhd8
{[%clk 0:00:33]} 35. Rf3 {[%clk 0:01:11.2]} 35... Rd2 {[%clk 0:00:27.8]} 36.
Ref1 {[%clk 0:01:10.4]} 36... f5 {[%clk 0:00:10.8]} 37. exf6+ {[%clk 0:01:09.8]}
37... Kf7 {[%clk 0:00:10.7]} 38. Nh3 {[%clk 0:01:08]} 38... Bd6+ {[%clk
0:00:08.5]} 39. Kg4 {[%clk 0:01:01.8]} 39... Rg2+ {[%clk 0:00:08.3]} 40. Rg3
{[%clk 0:01:02.4]} 40... Bxg3 {[%clk 0:00:05.2]} 41. hxg3 {[%clk 0:01:03.2]}
41... e5 {[%clk 0:00:02.5]} 42. Ng5+ {[%clk 0:01:03.4]} 42... Kg8 {[%clk
0:00:02.6]} 43. f7+ {[%clk 0:01:03.2]} 43... Kf8 {[%clk 0:00:02.1]} 44. Ne6+
{[%clk 0:01:03.5]} 44... Ke7 {[%clk 0:00:02.4]} 45. f8=Q+ {[%clk 0:01:03.5]}
45... Rxf8 {[%clk 0:00:02.8]} 46. Nxf8 {[%clk 0:01:04.4]} 46... Rb2 {[%clk
0:00:02.9]} 47. Nxg6+ {[%clk 0:01:04.7]} 47... Ke6 {[%clk 0:00:03.5]} 48. Re1
{[%clk 0:01:04.2]} 48... Rxb3 {[%clk 0:00:03]} 49. Nxe5 {[%clk 0:01:04.8]} 49...
Kd6 {[%clk 0:00:02.7]} 50. Kf4 {[%clk 0:01:03.3]} 50... Kc5 {[%clk 0:00:02.5]}
51. g4 {[%clk 0:01:00.5]} 51... Kb4 {[%clk 0:00:02.1]} 52. g5 {[%clk 0:01:00.7]}
52... Kxa4 {[%clk 0:00:02.4]} 53. g6 {[%clk 0:01:01.2]} 53... Rb2 {[%clk
0:00:02.9]} 54. Rg1 {[%clk 0:01:00.6]} 54... Rf2+ {[%clk 0:00:02.9]} 55. Nf3
{[%clk 0:01:01.2]} 55... Re2 {[%clk 0:00:01.9]} 56. g7 {[%clk 0:01:01]} 56...
Re8 {[%clk 0:00:02.8]} 57. g8=Q {[%clk 0:00:58.5]} 57... Rxg8 {[%clk 0:00:03.2]}
58. Rxg8 {[%clk 0:00:59.3]} 58... Kb3 {[%clk 0:00:03.6]} 59. Rb8 {[%clk
0:01:00.2]} 59... Kxc4 {[%clk 0:00:02.9]} 60. Rxb7 {[%clk 0:01:01.1]} 60... a4
{[%clk 0:00:03.6]} 61. Nd2+ {[%clk 0:01:00.5]} 61... Kc3 {[%clk 0:00:03.9]} 62.
Nb1+ {[%clk 0:01:01.2]} 62... Kc2 {[%clk 0:00:04.2]} 63. Na3+ {[%clk 0:01:02]}
1-0

[Event "*** Titled Tuesday Blitz"]
[Site "Chess.com"]
[Date "2020.11.03"]
[Round "5"]
[White "Azerichess"]
[Black "Radzio1987"]
[Result "1-0"]
[WhiteElo "3017"]
[BlackElo "2807"]
[TimeControl "180+1"]
[EndTime "10:59:21 PST"]
[Termination "Azerichess won by resignation"]

1. d4 {[%clk 0:02:13.3]} 1... Nf6 {[%clk 0:02:58.6]} 2. c4 {[%clk 0:02:12.6]}
2... e6 {[%clk 0:02:58.8]} 3. Nc3 {[%clk 0:02:12]} 3... Bb4 {[%clk 0:02:58.4]}
4. Qc2 {[%clk 0:02:11.8]} 4... d5 {[%clk 0:02:55.5]} 5. cxd5 {[%clk 0:02:11.5]}
5... Qxd5 {[%clk 0:02:55]} 6. Nf3 {[%clk 0:02:11.7]} 6... Qf5 {[%clk 0:02:54.5]}
7. Qb3 {[%clk 0:02:11.9]} 7... Nc6 {[%clk 0:02:50.2]} 8. e3 {[%clk 0:02:11.3]}
8... O-O {[%clk 0:02:47.9]} 9. Be2 {[%clk 0:02:10]} 9... a5 {[%clk 0:02:44.4]}
10. O-O {[%clk 0:02:07.5]} 10... e5 {[%clk 0:02:44.5]} 11. a3 {[%clk 0:01:39.1]}
11... a4 {[%clk 0:02:22.2]} 12. Nxa4 {[%clk 0:01:34.5]} 12... Bd6 {[%clk
0:02:21.8]} 13. Nc3 {[%clk 0:01:23.7]} 13... exd4 {[%clk 0:02:06.7]} 14. Nxd4
{[%clk 0:01:11.2]} 14... Nxd4 {[%clk 0:01:14.7]} 15. exd4 {[%clk 0:01:12.1]}
15... Re8 {[%clk 0:01:11.1]} 16. Be3 {[%clk 0:01:06.3]} 16... Ng4 {[%clk
0:01:09.3]} 17. h3 {[%clk 0:00:56.1]} 17... Nxe3 {[%clk 0:00:38.9]} 18. fxe3
{[%clk 0:00:57]} 18... Qg6 {[%clk 0:00:27.6]} 19. Bd3 {[%clk 0:00:53.7]} 19...
Be6 {[%clk 0:00:27.5]} 20. Bxg6 {[%clk 0:00:44.6]} 20... Bxb3 {[%clk 0:00:27.4]}
21. Be4 {[%clk 0:00:45.2]} 21... c6 {[%clk 0:00:27.5]} 22. Kf2 {[%clk
0:00:43.8]} 22... Re7 {[%clk 0:00:27.6]} 23. Bf3 {[%clk 0:00:42.6]} 23... f5
{[%clk 0:00:26]} 24. Rfe1 {[%clk 0:00:40]} 24... Rae8 {[%clk 0:00:25.2]} 25. g3
{[%clk 0:00:37.3]} 25... g6 {[%clk 0:00:24.6]} 26. h4 {[%clk 0:00:36.7]} 26...
Kg7 {[%clk 0:00:24.6]} 27. a4 {[%clk 0:00:36.3]} 27... Bb4 {[%clk 0:00:23.5]}
28. a5 {[%clk 0:00:36.3]} 28... Bc4 {[%clk 0:00:23.8]} 29. Ra4 {[%clk 0:00:35]}
29... Bxc3 {[%clk 0:00:24.1]} 30. bxc3 {[%clk 0:00:35.4]} 30... Ba6 {[%clk
0:00:24.2]} 31. Rb4 {[%clk 0:00:34.3]} 31... Kf6 {[%clk 0:00:20.6]} 32. c4
{[%clk 0:00:33.1]} 32... Re6 {[%clk 0:00:19.8]} 33. d5 {[%clk 0:00:30.7]} 33...
cxd5 {[%clk 0:00:20.1]} 34. Bxd5 {[%clk 0:00:31.6]} 34... R6e7 {[%clk
0:00:20.3]} 35. Rb6+ {[%clk 0:00:31.1]} 35... Kg7 {[%clk 0:00:20.4]} 36. Rb3
{[%clk 0:00:28.2]} 36... Rc8 {[%clk 0:00:20.1]} 37. Reb1 {[%clk 0:00:19]} 37...
Rc5 {[%clk 0:00:20]} 38. Bxb7 {[%clk 0:00:15.1]} 38... Rxa5 {[%clk 0:00:14.9]}
39. Bxa6 {[%clk 0:00:14]} 39... Rxa6 {[%clk 0:00:15.8]} 40. Rb7 {[%clk
0:00:14.5]} 40... Re6 {[%clk 0:00:13.6]} 41. Rxe7+ {[%clk 0:00:13.6]} 41... Rxe7
{[%clk 0:00:14.5]} 42. Kf3 {[%clk 0:00:12.3]} 42... Rc7 {[%clk 0:00:13]} 43. Rc1
{[%clk 0:00:12]} 43... Kf6 {[%clk 0:00:13.5]} 44. e4 {[%clk 0:00:12.2]} 44...
Ke5 {[%clk 0:00:13.4]} 45. exf5 {[%clk 0:00:12.4]} 45... gxf5 {[%clk 0:00:14.3]}
46. c5 {[%clk 0:00:12.4]} 46... Rc6 {[%clk 0:00:14.6]} 47. Rc2 {[%clk
0:00:12.1]} 47... h6 {[%clk 0:00:14.1]} 48. Rc1 {[%clk 0:00:12.3]} 48... Kf6
{[%clk 0:00:10.4]} 49. Kf4 {[%clk 0:00:12.5]} 49... Ke6 {[%clk 0:00:10.8]} 50.
Re1+ {[%clk 0:00:12]} 50... Kf6 {[%clk 0:00:11.1]} 51. Re5 {[%clk 0:00:12.9]}
1-0

[Event "*** Titled Tuesday Blitz"]
[Site "Chess.com"]
[Date "2020.11.03"]
[Round "5"]
[White "FairChess_on_YouTube"]
[Black "ShimanovAlex"]
[Result "1-0"]
[WhiteElo "2990"]
[BlackElo "2806"]
[TimeControl "180+1"]
[EndTime "10:59:22 PST"]
[Termination "FairChess_on_YouTube won on time"]

1. e4 {[%clk 0:03:00.9]} 1... c6 {[%clk 0:02:58.9]} 2. Nf3 {[%clk 0:02:56.7]}
2... d5 {[%clk 0:02:58.8]} 3. d3 {[%clk 0:02:57.3]} 3... Qc7 {[%clk 0:02:58.8]}
4. g3 {[%clk 0:02:55.8]} 4... dxe4 {[%clk 0:02:50.9]} 5. dxe4 {[%clk 0:02:55.5]}
5... e5 {[%clk 0:02:51.3]} 6. Bg2 {[%clk 0:02:53.4]} 6... Bg4 {[%clk 0:02:51.2]}
7. h3 {[%clk 0:02:50.4]} 7... Bh5 {[%clk 0:02:50.9]} 8. O-O {[%clk 0:02:47.7]}
8... Nd7 {[%clk 0:02:50.2]} 9. Qe1 {[%clk 0:02:43.7]} 9... Ngf6 {[%clk
0:02:48.8]} 10. Nh4 {[%clk 0:02:41.9]} 10... Bc5 {[%clk 0:02:48.5]} 11. Nd2
{[%clk 0:02:35]} 11... O-O {[%clk 0:02:46.9]} 12. Nc4 {[%clk 0:02:34.1]} 12...
Rfe8 {[%clk 0:02:37.7]} 13. Bd2 {[%clk 0:02:22.4]} 13... b5 {[%clk 0:02:28]} 14.
Ne3 {[%clk 0:02:18.4]} 14... Nb6 {[%clk 0:02:22.3]} 15. b3 {[%clk 0:02:08.2]}
15... Rad8 {[%clk 0:02:16.6]} 16. Nef5 {[%clk 0:02:06.4]} 16... Nbd7 {[%clk
0:01:49.4]} 17. Bg5 {[%clk 0:02:02]} 17... Ra8 {[%clk 0:01:38.4]} 18. Kh1 {[%clk
0:01:50]} 18... a5 {[%clk 0:01:30.9]} 19. a4 {[%clk 0:01:48.2]} 19... Bb4 {[%clk
0:01:00.2]} 20. Qe3 {[%clk 0:01:42.4]} 20... Bc5 {[%clk 0:00:58]} 21. Qc1 {[%clk
0:01:42.2]} 21... Bf8 {[%clk 0:00:55.2]} 22. Qb2 {[%clk 0:01:15.6]} 22... h6
{[%clk 0:00:44.2]} 23. Be3 {[%clk 0:01:11.3]} 23... Reb8 {[%clk 0:00:37.5]} 24.
Qc1 {[%clk 0:01:08.1]} 24... Bg6 {[%clk 0:00:24.8]} 25. Nxg6 {[%clk 0:01:01.9]}
25... fxg6 {[%clk 0:00:24.9]} 26. Nh4 {[%clk 0:01:02.2]} 26... g5 {[%clk
0:00:23.8]} 27. Ng6 {[%clk 0:00:40.6]} 27... Bc5 {[%clk 0:00:21]} 28. f4 {[%clk
0:00:38.4]} 28... gxf4 {[%clk 0:00:18.7]} 29. gxf4 {[%clk 0:00:38.3]} 29... Bxe3
{[%clk 0:00:18.2]} 30. Qxe3 {[%clk 0:00:38.3]} 30... Re8 {[%clk 0:00:18.4]} 31.
f5 {[%clk 0:00:28.8]} 31... Nf8 {[%clk 0:00:07.8]} 32. Nh4 {[%clk 0:00:21.9]}
32... b4 {[%clk 0:00:06.6]} 33. Bf3 {[%clk 0:00:21.4]} 33... Qa7 {[%clk
0:00:05.1]} 34. Qe2 {[%clk 0:00:20.2]} 34... Rad8 {[%clk 0:00:04.6]} 35. Rg1
{[%clk 0:00:20.2]} 35... Kh8 {[%clk 0:00:05.1]} 36. Rg2 {[%clk 0:00:19.6]} 36...
Re7 {[%clk 0:00:05]} 37. Rag1 {[%clk 0:00:20]} 37... Qd4 {[%clk 0:00:04.9]} 38.
Qe1 {[%clk 0:00:17.4]} 38... Rdd7 {[%clk 0:00:04.5]} 39. Kh2 {[%clk 0:00:17]}
39... Qc3 {[%clk 0:00:04.4]} 40. Qc1 {[%clk 0:00:14.2]} 40... N8h7 {[%clk
0:00:03.2]} 41. Ng6+ {[%clk 0:00:13.4]} 41... Kg8 {[%clk 0:00:04.1]} 42. Nxe7+
{[%clk 0:00:13]} 42... Rxe7 {[%clk 0:00:05]} 43. Qxh6 {[%clk 0:00:13.4]} 43...
Ne8 {[%clk 0:00:04.6]} 44. Bh5 {[%clk 0:00:12.3]} 44... Kh8 {[%clk 0:00:03.7]}
45. Bxe8 {[%clk 0:00:11.2]} 1-0

[Event "*** Titled Tuesday Blitz"]
[Site "Chess.com"]
[Date "2020.11.03"]
[Round "5"]
[White "indfraeng"]
[Black "vladgoncharov"]
[Result "1-0"]
[WhiteElo "2359"]
[BlackElo "2475"]
[TimeControl "180+1"]
[EndTime "10:59:22 PST"]
[Termination "indfraeng won on time"]

1. d4 {[%clk 0:03:00.9]} 1... Nf6 {[%clk 0:02:58.1]} 2. c4 {[%clk 0:03:01.4]}
2... e6 {[%clk 0:02:58.3]} 3. g3 {[%clk 0:03:01.9]} 3... c5 {[%clk 0:02:58.5]}
4. d5 {[%clk 0:03:01.8]} 4... exd5 {[%clk 0:02:58.1]} 5. cxd5 {[%clk 0:03:02.7]}
5... d6 {[%clk 0:02:58.7]} 6. Bg2 {[%clk 0:03:03]} 6... g6 {[%clk 0:02:59.3]} 7.
Nc3 {[%clk 0:03:03.3]} 7... Bg7 {[%clk 0:02:59.7]} 8. Nf3 {[%clk 0:03:03.9]}
8... O-O {[%clk 0:02:59.7]} 9. O-O {[%clk 0:03:04.5]} 9... Bg4 {[%clk
0:02:58.7]} 10. Nd2 {[%clk 0:03:02.7]} 10... Qd7 {[%clk 0:02:57.5]} 11. a4
{[%clk 0:02:55.7]} 11... Na6 {[%clk 0:02:51.5]} 12. Nc4 {[%clk 0:02:51.8]} 12...
Rfd8 {[%clk 0:02:46.9]} 13. Bf4 {[%clk 0:02:50.5]} 13... Ne8 {[%clk 0:02:44.1]}
14. Nb5 {[%clk 0:02:36.9]} 14... Bf8 {[%clk 0:02:42]} 15. Re1 {[%clk 0:02:23.1]}
15... Bh3 {[%clk 0:02:34.8]} 16. e4 {[%clk 0:02:13.2]} 16... Bxg2 {[%clk
0:02:34]} 17. Kxg2 {[%clk 0:02:12.6]} 17... f6 {[%clk 0:02:31]} 18. h4 {[%clk
0:02:01.5]} 18... Nac7 {[%clk 0:02:28]} 19. Qb3 {[%clk 0:01:57.1]} 19... Nxb5
{[%clk 0:02:21.9]} 20. axb5 {[%clk 0:01:58]} 20... Qf7 {[%clk 0:02:11.6]} 21.
Rad1 {[%clk 0:01:33]} 21... h5 {[%clk 0:02:07.9]} 22. Qc3 {[%clk 0:01:23.7]}
22... Kh7 {[%clk 0:02:05.3]} 23. b4 {[%clk 0:01:23.2]} 23... Rac8 {[%clk
0:01:57]} 24. Ra1 {[%clk 0:01:11.7]} 24... b6 {[%clk 0:01:54.2]} 25. bxc5 {[%clk
0:01:09.1]} 25... Rxc5 {[%clk 0:01:52.6]} 26. Qb4 {[%clk 0:01:07.4]} 26... Bh6
{[%clk 0:01:46.8]} 27. Bxh6 {[%clk 0:01:03.9]} 27... Kxh6 {[%clk 0:01:46.4]} 28.
Rec1 {[%clk 0:01:01.1]} 28... f5 {[%clk 0:01:41.3]} 29. Ne3 {[%clk 0:00:56.7]}
29... fxe4 {[%clk 0:01:26.7]} 30. Qxe4 {[%clk 0:00:50.2]} 30... Ng7 {[%clk
0:01:26.4]} 31. Rxc5 {[%clk 0:00:48.5]} 31... dxc5 {[%clk 0:01:25.9]} 32. Qe5
{[%clk 0:00:43]} 32... Re8 {[%clk 0:01:15]} 33. Qg5+ {[%clk 0:00:40]} 33... Kh7
{[%clk 0:01:14.5]} 34. Rd1 {[%clk 0:00:37.4]} 34... Qd7 {[%clk 0:01:03.6]} 35.
d6 {[%clk 0:00:32.2]} 35... Re6 {[%clk 0:00:53]} 36. Nd5 {[%clk 0:00:29]} 36...
Qxd6 {[%clk 0:00:50]} 37. Nf6+ {[%clk 0:00:28.6]} 37... Rxf6 {[%clk 0:00:50.1]}
38. Rxd6 {[%clk 0:00:29.2]} 38... Rxd6 {[%clk 0:00:50.5]} 39. Qe7 {[%clk
0:00:29.8]} 39... Rd5 {[%clk 0:00:36.2]} 40. Qxa7 {[%clk 0:00:29.8]} 40... c4
{[%clk 0:00:36.5]} 41. Qxb6 {[%clk 0:00:30.7]} 41... c3 {[%clk 0:00:36.4]} 42.
Qc6 {[%clk 0:00:30.3]} 42... c2 {[%clk 0:00:36.8]} 43. b6 {[%clk 0:00:24.2]}
43... Rd6 {[%clk 0:00:14.6]} 44. Qxd6 {[%clk 0:00:17.4]} 44... c1=Q {[%clk
0:00:13.8]} 45. b7 {[%clk 0:00:17.6]} 45... Qc2 {[%clk 0:00:09.7]} 46. b8=Q
{[%clk 0:00:17.3]} 46... Qe4+ {[%clk 0:00:09.8]} 47. Kh2 {[%clk 0:00:17.4]}
47... Qf3 {[%clk 0:00:04.6]} 48. Qf4 {[%clk 0:00:17.4]} 48... Qe2 {[%clk
0:00:01.5]} 49. Qh6+ {[%clk 0:00:17.2]} 1-0